Workbook

Sheet PrintableSheet
A1: Summary
A2: Blend (Calcined) | B2: List of Customers
A3: List of Suppliers | B3: Alcan Canada | C3: Alcan Lynemouth | D3: Alcan Sebree | E3: Unused Green
A4: Alcan Mar | B4: 34642.03233 | C4: 0 | D4: 0 | E4: 0
A5: Motiva | B5: 42948.83847 | C5: 29710.56508 | D5: 19130.43478 | E5: 246765
A6: Marathon | B6: 65409.12919 | C6: 20289.43492 | D6: 52869.56522 | E6: 0
A8: Quality Specifications | B8: List of Customers
A9: List of Qualities | B9: Alcan Canada | C9: Alcan Lynemouth | D9: Alcan Sebree
A10: Sulfur | B10: 2.7 | C10: 2.137300984 | D10: 2.835386473
A11: Vanadium | B11: 0.0280043406 | C11: 0.02219982606 | D11: 0.029
A12: Ni | B12: 0.01955 | C12: 0.01955 | D12: 0.01955
A14: Supplier to Plant Shipping | B14: List of Plants
A15: List of Suppliers | B15: Chalmette | C15: Gramercy | D15: Norco | E15: Robinson | F15: Lake Charles | G15: Moundsville | H15: Unused Green
A16: Alcan Mar | B16: 0 | C16: 0 | D16: 45000 | E16: 0 | F16: 0 | G16: 0 | H16: 0
A17: Motiva | B17: 24850.43478 | C17: 0 | D17: 94384.56522 | E17: 0 | F17: 0 | G17: 0 | H17: 246765
A18: Marathon | B18: 167925.8502 | C18: 0 | D18: 12074.14984 | E18: 0 | F18: 0 | G18: 0 | H18: 0
A19: Available T-Put (Calcined) | B19: 35567.39343 | C19: 221427 | D19: 98220.60657 | E19: 292647 | F19: 195318 | G19: 318369
A21: Plant to Terminal Redistribution | B21: List of Plants
A22: List of Terminals | B22: Chalmette | C22: Gramercy | D22: Norco | E22: Robinson | F22: Lake Charles | G22: Moundsville
A23: Chalmette | B23: 128114.1717 | C23: 0 | D23: 86885.82835 | E23: 0 | F23: 0 | G23: 0
A24: Gramercy | B24: 0 | C24: 0 | D24: 0 | E24: 0 | F24: 0 | G24: 0
A25: Norco | B25: 0 | C25: 0 | D25: 0 | E25: 0 | F25: 0 | G25: 0
A26: Robinson | B26: 20289.43492 | C26: 0 | D26: 29710.56508 | E26: 0 | F26: 0 | G26: 0
A27: Lake Charles | B27: 0 | C27: 0 | D27: 0 | E27: 0 | F27: 0 | G27: 0
A28: Moundsville | B28: 0 | C28: 0 | D28: 0 | E28: 0 | F28: 0 | G28: 0

Sheet SupplierData
A1: Supplier Input Data
A3: The Supplier Quality | B3: List of Suppliers | F3: Conversions
A4: List of Qualities | B4: Alcan Mar | C4: Motiva | D4: Marathon | F4: x0 | G4: x1 | H4: x2
A5: Sulfur | B5: 3.7 | C5: 1.5 | D5: 4 | G5: 0.85
A6: Vanadium | B6: 0.029 | C6: 0.012 | D6: 0.03 | G6: 1.15
A7: Ni | B7: 0.017 | C7: 0.017 | D7: 0.017 | G7: 1.15
F8: Calc Quality = x0 + x1*GC + x2*GC^2
B9: Alcan Mar | C9: Motiva | D9: Marathon | E9: Totals
A10: Price | B10: 89 | C10: 127.04 | D10: 88.18
A11: Max Available | B11: 45000 | C11: 366000 | D11: 180000 | E11: =SUM(B11:D11) -> 591000
A12: Min Forced Take | E12: =SUM(B12:D12) -> 0
A14: Yield Factors | B14: YieldFactor(Plant, Supplier)*Production = Usage
A15: List of Plants | B15: Alcan Mar | C15: Motiva | D15: Marathon
A16: Chalmette | B16: 1.299 | C16: 1.299 | D16: 1.299
A17: Gramercy | B17: 1.299 | C17: 1.299 | D17: 1.299
A18: Norco | B18: 1.299 | C18: 1.299 | D18: 1.299
A19: Robinson | B19: 1.299 | C19: 1.299 | D19: 1.299
A20: Lake Charles | B20: 1.299 | C20: 1.299 | D20: 1.299
A21: Moundsville | B21: 1.299 | C21: 1.299 | D21: 1.299
A23: Shipping Cost to Plants
A24: List of Plants | B24: Alcan Mar | C24: Motiva | D24: Marathon
A25: Chalmette
A26: Gramercy
A27: Norco
A28: Robinson
A29: Lake Charles
A30: Moundsville
A32: Energy Factors
A33: List of Plants | B33: Alcan Mar | C33: Motiva | D33: Marathon
A34: Chalmette
A35: Gramercy
A36: Norco
A37: Robinson
A38: Lake Charles
A39: Moundsville

Sheet PlantData
A1: Plant Input Data
B2: List of Plants
B3: Chalmette | C3: Gramercy | D3: Norco | E3: Robinson | F3: Lake Charles | G3: Moundsville | H3: Total
A4: T-Put (Calcined) | B4: 183971 | C4: 221427 | D4: 214817 | E4: 292647 | F4: 195318 | G4: 318369 | H4: =SUM(B4:G4) -> 1426549
A6: Max Sulfur per ton | B6: 7 | C6: 2.7 | D6: 2 | E6: 7 | F6: 3.5 | G6: 3
A9: Plant Fixed Costs
A10: Plant Cost per Ton
A11: Utility Fixed Costs
A12: Utility Income Price
A15: Redistribution costs
A16: List of Terminals
A17: Chalmette
A18: Gramercy
A19: Norco
A20: Robinson
A21: Lake Charles
A22: Moundsville

Sheet TerminalData
A1: Terminal Input Data
B2: List of Terminals
B3: Chalmette | C3: Gramercy | D3: Norco | E3: Robinson | F3: Lake Charles | G3: Moundsville
A4: Terminal Costs
A6: Choice of Terminal
A7: List of Customers | B7: Indicate by the number 1 which Terminal can be used for the customer
A8: Alcan Canada | B8: 1 | C8: 1 | D8: 1 | E8: 1 | F8: 1 | G8: 1
A9: Alcan Lynemouth | B9: 1 | C9: 1 | D9: 1 | E9: 1 | F9: 1 | G9: 1
A10: Alcan Sebree | B10: 1 | C10: 1 | D10: 1 | E10: 1 | F10: 1 | G10: 1
A12: Delivery Costs
A13: List of Customers | B13: Chalmette | C13: Gramercy | D13: Norco | E13: Robinson | F13: Lake Charles | G13: Moundsville
A14: Alcan Canada
A15: Alcan Lynemouth
A16: Alcan Sebree

Sheet CustomerData
A1: Customer Input Data
B2: List of Customers
B3: Alcan Canada | C3: Alcan Lynemouth | D3: Alcan Sebree | E3: Total
A4: Customer Demand | B4: =177000+35000-69000 -> 143000 | C4: 50000 | D4: 72000 | E4: =SUM(B4:D4) -> 265000
A6: Max Quality Spec | B6: List of Customers
A7: List of Qualities | B7: Alcan Canada | C7: Alcan Lynemouth | D7: Alcan Sebree
A8: Sulfur | B8: 2.7 | C8: 3 | D8: 2.9
A9: Vanadium | B9: 0.029 | C9: 0.029 | D9: 0.029
A10: Ni | B10: 10 | C10: 10 | D10: 10
A12: Min Quality Spec | B12: List of Customers
A13: List of Qualities | B13: Alcan Canada | C13: Alcan Lynemouth | D13: Alcan Sebree
A14: Sulfur
A15: Vanadium
A16: Ni
A20: Max Blend % | B20: List of Customers
A21: List of Suppliers | B21: Alcan Canada | C21: Alcan Lynemouth | D21: Alcan Sebree
A22: Alcan Mar | B22: 100 | C22: 100 | D22: 100
A23: Motiva | B23: 100 | C23: 100 | D23: 100
A24: Marathon | B24: 100 | C24: 100 | D24: 100
A26: Min Blend % | B26: List of Customers
A27: List of Suppliers | B27: Alcan Canada | C27: Alcan Lynemouth | D27: Alcan Sebree
A28: Alcan Mar
A29: Motiva
A30: Marathon

Sheet SupplierProfile
A1: Supplier Profile
B3: List of Suppliers
B4: Alcan Mar | C4: Motiva | D4: Marathon
A5: Max Available | B5: =SupplierData!B11 -> 45000 | C5: =SupplierData!C11 -> 366000 | D5: =SupplierData!D11 -> 180000
A6: Optimal Green Coke | B6: 45000 | C6: 119235 | D6: 180000
A7: MinTake | B7: =SupplierData!B12 -> 0 | C7: =SupplierData!C12 -> 0 | D7: =SupplierData!D12 -> 0
A10: True Yield (Green/Calcined) | B10: 1.299 | C10: 1.299 | D10: 1.299
A13: Shipped To Plants
A14: List of Plants | B14: Alcan Mar | C14: Motiva | D14: Marathon
A15: Chalmette | B15: 0 | C15: 24850.43478 | D15: 167925.8502
A16: Gramercy | B16: 0 | C16: 0 | D16: 0
A17: Norco | B17: 45000 | C17: 94384.56522 | D17: 12074.14984
A18: Robinson | B18: 0 | C18: 0 | D18: 0
A19: Lake Charles | B19: 0 | C19: 0 | D19: 0
A20: Moundsville | B20: 0 | C20: 0 | D20: 0
A22: Calcined Blend
A23: List of Customers | B23: Alcan Mar | C23: Motiva | D23: Marathon
A24: Alcan Canada | B24: 34642.03233 | C24: 42948.83847 | D24: 65409.12919
A25: Alcan Lynemouth | B25: 0 | C25: 29710.56508 | D25: 20289.43492
A26: Alcan Sebree | B26: 0 | C26: 19130.43478 | D26: 52869.56522
A29: #NONEXIST!
A30: #NONEXIST!
A31: #NONEXIST!
A32: #NONEXIST!

Sheet ProcessingProfile
A1: Processing Profile
B2: List of Plants
B3: Chalmette | C3: Gramercy | D3: Norco | E3: Robinson | F3: Lake Charles | G3: Moundsville
A4: T-Put Maximum | B4: =PlantData!B4 -> 183971 | C4: =PlantData!C4 -> 221427 | D4: =PlantData!D4 -> 214817 | E4: =PlantData!E4 -> 292647 | F4: =PlantData!F4 -> 195318 | G4: =PlantData!G4 -> 318369
A5: Optimal T-Put | B5: 148403.6066 | C5: 0 | D5: 116596.3934 | E5: 0 | F5: 0 | G5: 0
A7: Sulfur Max Allowed | B7: =PlantData!B6 -> 7 | C7: =PlantData!C6 -> 2.7 | D7: =PlantData!D6 -> 2 | E7: =PlantData!E6 -> 7 | F7: =PlantData!F6 -> 3.5 | G7: =PlantData!G6 -> 3
A8: Optimal Run of Sulfur | B8: 3.126070175 | C8: 0 | D8: 2 | E8: 0 | F8: 0 | G8: 0
A10: Optimal True Yield | B10: 1.299 | C10: 0 | D10: 1.299 | E10: 0 | F10: 0 | G10: 0
A12: Received from Supplier
A13: List of Suppliers | B13: Chalmette | C13: Gramercy | D13: Norco | E13: Robinson | F13: Lake Charles | G13: Moundsville
A14: Alcan Mar | B14: 0 | C14: 0 | D14: 45000 | E14: 0 | F14: 0 | G14: 0
A15: Motiva | B15: 24850.43478 | C15: 0 | D15: 94384.56522 | E15: 0 | F15: 0 | G15: 0
A16: Marathon | B16: 167925.8502 | C16: 0 | D16: 12074.14984 | E16: 0 | F16: 0 | G16: 0
A18: Shipped to Terminals | B18: List of Plants
A19: List of Terminals | B19: Chalmette | C19: Gramercy | D19: Norco | E19: Robinson | F19: Lake Charles | G19: Moundsville
A20: Chalmette | B20: 128114.1717 | C20: 0 | D20: 86885.82835 | E20: 0 | F20: 0 | G20: 0
A21: Gramercy | B21: 0 | C21: 0 | D21: 0 | E21: 0 | F21: 0 | G21: 0
A22: Norco | B22: 0 | C22: 0 | D22: 0 | E22: 0 | F22: 0 | G22: 0
A23: Robinson | B23: 20289.43492 | C23: 0 | D23: 29710.56508 | E23: 0 | F23: 0 | G23: 0
A24: Lake Charles | B24: 0 | C24: 0 | D24: 0 | E24: 0 | F24: 0 | G24: 0
A25: Moundsville | B25: 0 | C25: 0 | D25: 0 | E25: 0 | F25: 0 | G25: 0
A28: Calcined at Terminal from Supplier | B28: List of Terminals
A29: List of Suppliers | B29: Chalmette | C29: Gramercy | D29: Norco | E29: Robinson | F29: Lake Charles | G29: Moundsville
A30: Alcan Mar | B30: 34642.03233 | C30: 0 | D30: 0 | E30: 0 | F30: 0 | G30: 0
A31: Motiva | B31: 62079.27326 | C31: 0 | D31: 0 | E31: 29710.56508 | F31: 0 | G31: 0
A32: Marathon | B32: 118278.6944 | C32: 0 | D32: 0 | E32: 20289.43492 | F32: 0 | G32: 0
A35: #NONEXIST!
A36: #NONEXIST!
A37: #NONEXIST!
A38: #NONEXIST!
A39: #NONEXIST!
A40: #NONEXIST!

Sheet SpecsOrders
A1: Specs and Orders
C2: <= The Color of the Max Input | G2: <= The Color of the Min Input
A3: Customer Specs | B3: List of Customers
A4: List of Qualities | B4: Alcan Canada | C4: Alcan Lynemouth | D4: Alcan Sebree
A5: Sulfur | B5: =CustomerData!B8 -> 2.7 | C5: =CustomerData!C8 -> 3 | D5: =CustomerData!D8 -> 2.9
B6: =B118 -> 2.7 | C6: =C118 -> 2.137300984 | D6: =D118 -> 2.835386473
B7: =CustomerData!B14 -> 0 | C7: =CustomerData!C14 -> 0 | D7: =CustomerData!D14 -> 0
A8: Vanadium | B8: =CustomerData!B9 -> 0.029 | C8: =CustomerData!C9 -> 0.029 | D8: =CustomerData!D9 -> 0.029
B9: =B119 -> 0.0280043406 | C9: =C119 -> 0.02219982606 | D9: =D119 -> 0.029
B10: =CustomerData!B15 -> 0 | C10: =CustomerData!C15 -> 0 | D10: =CustomerData!D15 -> 0
A11: Ni | B11: =CustomerData!B10 -> 10 | C11: =CustomerData!C10 -> 10 | D11: =CustomerData!D10 -> 10
B12: =B120 -> 0.01955 | C12: =C120 -> 0.01955 | D12: =D120 -> 0.01955
B13: =CustomerData!B16 -> 0 | C13: =CustomerData!C16 -> 0 | D13: =CustomerData!D16 -> 0
A15: Blend (%) | B15: List of Customers
A16: List of Suppliers | B16: Alcan Canada | C16: Alcan Lynemouth | D16: Alcan Sebree
A17: Alcan Mar | B17: =CustomerData!B22 -> 100 | C17: =CustomerData!C22 -> 100 | D17: =CustomerData!D22 -> 100
B18: =B123 -> 24.22519744 | C18: =C123 -> 0 | D18: =D123 -> 0
B19: =CustomerData!B28 -> 0 | C19: =CustomerData!C28 -> 0 | D19: =CustomerData!D28 -> 0
A20: Motiva | B20: =CustomerData!B23 -> 100 | C20: =CustomerData!C23 -> 100 | D20: =CustomerData!D23 -> 100
B21: =B124 -> 30.03415278 | C21: =C124 -> 59.42113016 | D21: =D124 -> 26.57004831
B22: =CustomerData!B29 -> 0 | C22: =CustomerData!C29 -> 0 | D22: =CustomerData!D29 -> 0
A23: Marathon | B23: =CustomerData!B24 -> 100 | C23: =CustomerData!C24 -> 100 | D23: =CustomerData!D24 -> 100
B24: =B125 -> 45.74064979 | C24: =C125 -> 40.57886984 | D24: =D125 -> 73.42995169
B25: =CustomerData!B30 -> 0 | C25: =CustomerData!C30 -> 0 | D25: =CustomerData!D30 -> 0
A28: #NONEXIST!
A29: #NONEXIST!
B118: 2.7 | C118: 2.137300984 | D118: 2.835386473
B119: 0.0280043406 | C119: 0.02219982606 | D119: 0.029
B120: 0.01955 | C120: 0.01955 | D120: 0.01955
B123: 24.22519744 | C123: 0 | D123: 0
B124: 30.03415278 | C124: 59.42113016 | D124: 26.57004831
B125: 45.74064979 | C125: 40.57886984 | D125: 73.42995169

Sheet CustomerProfile
A1: Customer Profile | AE1: Chalmette
A2: Blend (Calcined) | B2: List of Customers
A3: List of Suppliers | B3: Alcan Canada | C3: Alcan Lynemouth | D3: Alcan Sebree
A4: Alcan Mar | B4: 34642.03233 | C4: 0 | D4: 0
A5: Motiva | B5: 42948.83847 | C5: 29710.56508 | D5: 19130.43478
A6: Marathon | B6: 65409.12919 | C6: 20289.43492 | D6: 52869.56522
A7: Total Demand | B7: =CustomerData!B4 -> 143000 | C7: =CustomerData!C4 -> 50000 | D7: =CustomerData!D4 -> 72000
A9: Purchase Price | B9: 129.964844 | C9: 144.5410955 | D9: 127.9581519
A10: Shipping Cost | B10: 0 | C10: 0 | D10: 0
A11: Processed at Plant
A12: List of Plants | B12: Alcan Canada | C12: Alcan Lynemouth | D12: Alcan Sebree
A13: Chalmette | B13: 65409.12919 | C13: 20289.43492 | D13: 62705.04246
A14: Gramercy | B14: 0 | C14: 0 | D14: 0
A15: Norco | B15: 77590.87081 | C15: 29710.56508 | D15: 9294.95754
A16: Robinson | B16: 0 | C16: 0 | D16: 0
A17: Lake Charles | B17: 0 | C17: 0 | D17: 0
A18: Moundsville | B18: 0 | C18: 0 | D18: 0
A20: Calcination Cost | B20: 0 | C20: 0 | D20: 0
A21: Total Plant Cost | B21: 0 | C21: 0 | D21: 0
A22: Redistribution Cost | B22: 0 | C22: 0 | D22: 0
A24: Customer's Terminal
A25: Terminal Cost | B25: 0 | C25: 0 | D25: 0
A26: Delivery Cost | B26: 0 | C26: 0 | D26: 0
A28: With Energy | B28: Alcan Canada | C28: Alcan Lynemouth | D28: Alcan Sebree | E28: Total Sum Cost
A29: Total Cost | B29: =B9+B10+B20+B21+B22+B25+B26 -> 129.964844 | C29: =C9+C10+C20+C21+C22+C25+C26 -> 144.5410955 | D29: =D9+D10+D20+D21+D22+D25+D26 -> 127.9581519 | E29: =ROUND((B7*B29+C7*C29+D7*D29)/(SUM(B7:D7)),2) -> 132.17
A30: Net Sales
A31: Margin | B31: =B30-B29 -> -129.964844 | C31: =C30-C29 -> -144.5410955 | D31: =D30-D29 -> -127.9581519
A33: Without Energy | E33: Total Sum Cost
A34: Total Cost | B34: =B9+B10+B20+B21+B22+B25+B26 -> 129.964844 | C34: =C9+C10+C20+C21+C22+C25+C26 -> 144.5410955 | D34: =D9+D10+D20+D21+D22+D25+D26 -> 127.9581519 | E34: =ROUND((B7*B34+C7*C34+D7*D34)/(SUM(B7:D7)),2) -> 132.17
A35: Net Sales
A36: Margin | B36: =B35-B34 -> -129.964844 | C36: =C35-C34 -> -144.5410955 | D36: =D35-D34 -> -127.9581519
A38: Blend (Green)
A39: List of Suppliers | B39: Alcan Canada | C39: Alcan Lynemouth | D39: Alcan Sebree
A40: Alcan Mar | B40: 45000 | C40: 0 | D40: 0
A41: Motiva | B41: 55790.54118 | C41: 38594.02404 | D41: 24850.43478
A42: Marathon | B42: 84966.45882 | C42: 26355.97596 | D42: 68677.56522
A43: Customer Terminal Pickup
A44: List of Terminals | B44: Alcan Canada | C44: Alcan Lynemouth | D44: Alcan Sebree
A45: Chalmette | B45: 143000 | C45: 0 | D45: 72000
A46: Gramercy | B46: 0 | C46: 0 | D46: 0
A47: Norco | B47: 0 | C47: 0 | D47: 0
A48: Robinson | B48: 0 | C48: 50000 | D48: 0
A49: Lake Charles | B49: 0 | C49: 0 | D49: 0
A50: Moundsville | B50: 0 | C50: 0 | D50: 0
B51: =SUM(B45:B50) -> 143000 | C51: =SUM(C45:C50) -> 50000 | D51: =SUM(D45:D50) -> 72000
A53: #NONEXIST!
A54: #NONEXIST!
A55: #NONEXIST!
A56: #NONEXIST!
A57: #NONEXIST!
A58: #NONEXIST!
A59: #NONEXIST!
A60: #NONEXIST!
A61: #NONEXIST!
A62: #NONEXIST!

Sheet Worksheet Tools
U1: Alcan Mar | V1: Motiva | W1: Marathon | X1: Kuwait | Y1: Exxon Contract | Z1: Lima | AA1: BP Toledo | AB1: Mobil | AC1: Whiting | AD1: Melaka
B2: <=Scenario Months | U2: Chalmette | V2: Gramercy | W2: Norco | X2: Robinson | Y2: Lake Charles | Z2: Moundsville
A3: 3 | B3: <=Max Suppliers | E3: Suppliers | H3: Plants | K3: Terminals | N3: Customers | Q3: Qualities | U3: Chalmette | V3: Gramercy | W3: Norco | X3: Robinson | Y3: Lake Charles | Z3: Moundsville
A4: 6 | B4: <=Max Plants | D4: 1 | E4: Alcan Mar | G4: 1 | H4: Chalmette | J4: 1 | K4: Chalmette | M4: 1 | N4: Alcan Canada | P4: 1 | Q4: Sulfur | U4: Alcan Canada | V4: Alcan Lynemouth | W4: Alcan Sebree | X4: Alcoa Massena | Y4: Alcan Canadasouth | Z4: Alcoa Eastalco(Fedrick, MD) | AA4: Alquette | AB4: Aluminerie Becancour1 | AC4: Alumar1 | AD4: Billition Hillside1
A5: 6 | B5: <=Max Terminals | D5: 2 | E5: Motiva | G5: 2 | H5: Gramercy | J5: 2 | K5: Gramercy | M5: 2 | N5: Alcan Lynemouth | P5: 2 | Q5: Vanadium | U5: Sulfur | V5: Vanadium | W5: Ni
A6: 3 | B6: <=Max Customers | D6: 3 | E6: Marathon | G6: 3 | H6: Norco | J6: 3 | K6: Norco | M6: 3 | N6: Alcan Sebree | P6: 3 | Q6: Ni
A7: 3 | B7: <=Max Qualities | D7: 4 | E7: Kuwait | G7: 4 | H7: Robinson | J7: 4 | K7: Robinson
G8: 5 | H8: Lake Charles | J8: 5 | K8: Lake Charles
G9: 6 | H9: Moundsville | J9: 6 | K9: Moundsville
A33: 0 | B33: <=Path Matlab window
A35: 0 | B35: <=Input of Maxes
A36: Input from Suppliers
B37: <=Supply Quality
B38: <=conversions
B39: <=Supply Data
B40: <=Yields
B41: <=Plant Ship cost
B42: <=Energy Factors
A44: Input from Plants
B45: <=Tput
B46: <=Sulfur Max
B47: <=Plant Costs
B48: <=Terminal Ship cost
A50: Input from Terminals
B51: <=Customer Pickup
B52: <=Terminal Costs
A54: Input from Customers
B55: <= Demand
B56: <= Max Quality
B57: <= Min Quality
B58: <= Max Special order
B59: <= Min Special Order

Sheet __AIMMS_SETUP__ (hidden)
A1: H:\CII\Green1\Green1.prj | B1: Initialization | C1: TRUE | D1: 0 | E1: 1 | F1: 0
B2: Main | C2: FALSE | D2: 1 | E2: 1 | F2: 1 | G2: Customers | H2: INSetNameCustomer
B3: Execute | C3: TRUE | D3: 3 | E3: 1 | F3: 1 | G3: Suppliers | H3: INSetNameSupplier
B4: Output | C4: TRUE | D4: 3 | E4: 2 | F4: 1 | G4: Plants | H4: INSetNamePlant
B5: RetrieveInputData | C5: TRUE | D5: 3 | E5: 3 | F5: 1 | G5: Terminals | H5: INSetNameTerminal
A6: 0 | B6: Input Test | C6: TRUE | D6: 3 | E6: 4 | F6: 1 | G6: Customers | H6: INSetNameCustomer
D7: 3 | E7: 5 | F7: 1 | G7: Qualities | H7: INSetNameQualities
A8: 6 | D8: 3 | E8: 6 | F8: 3 | G8: InSupplierQuality | H8: INSupplyQuality
A9: 99 | D9: 3 | E9: 7 | F9: 3 | G9: InSupplierQualConversion | H9: InSupplyQualConversions
D10: 3 | E10: 8 | F10: 3 | G10: InSupplierSulfur | H10: INSupplySulfurQuality
D11: 3 | E11: 9 | F11: 3 | G11: InSupplierSulfurConversion | H11: InSupplySulfurConversions
D12: 3 | E12: 10 | F12: 3 | G12: InSupplierPurchasePrice | H12: INSupplierPrice
D13: 3 | E13: 11 | F13: 3 | G13: InSupplierMaxAvailable | H13: INSupplierMaxAvailable
D14: 3 | E14: 12 | F14: 3 | G14: InSupplierMinTake | H14: INSupplierMinForcedTake
D15: 3 | E15: 13 | F15: 3 | G15: InSupplierPlantYield | H15: INSupplierYieldFactor
D16: 3 | E16: 14 | F16: 3 | G16: InSupplierToPlantShipping | H16: INSupplierToPlantShippingCost
D17: 3 | E17: 15 | F17: 3 | G17: InPlantTput | H17: INPlantTPut
D18: 3 | E18: 16 | F18: 3 | G18: InPlantMaxSulfur | H18: INPlantMaxSulfur
D19: 3 | E19: 17 | F19: 3 | G19: InPlantCostperTon | H19: INPlantCostPerTon
D20: 3 | E20: 18 | F20: 3 | G20: InPlantFixedCost | H20: INPlantFixedCosts
D21: 3 | E21: 19 | F21: 3 | G21: InPlantUtilityFixedCost | H21: INPlantUtilityFixedCosts
D22: 3 | E22: 20 | F22: 3 | G22: InPlantUtilityIncomePrice | H22: INPlantUtilityIncomePrice
D23: 3 | E23: 21 | F23: 3 | G23: InPlantToTerminalRedistribution | H23: INPlantToTerminalShippingCost
D24: 3 | E24: 22 | F24: 3 | G24: InTerminalCost | H24: INTerminalCosts
D25: 3 | E25: 23 | F25: 3 | G25: InTerminalSpecifiedByCustomer | H25: INTerminalCustomerPickup
D26: 3 | E26: 24 | F26: 3 | G26: InTerminalDeliveryCost | H26: INTerminalCustomerDeliveryCost
D27: 3 | E27: 25 | F27: 3 | G27: InCustomerDemand | H27: INCustomerDemand
D28: 3 | E28: 26 | F28: 3 | G28: InCustomerMaxQual | H28: INCustomerMaxQuality
D29: 3 | E29: 27 | F29: 3 | G29: InCustomerMinQual | H29: INCustomerMinQuality
D30: 3 | E30: 28 | F30: 3 | G30: InCustomerMaxSpecialOrder | H30: INCustomerMaxSpecialOrder
D31: 3 | E31: 29 | F31: 3 | G31: InCustomerMinSpecialOrder | H31: INCustomerMinSpecialOrder
D32: 4 | E32: 1 | F32: 4 | G32: OutCustomerBlendProduction | H32: OPTCustomerBlend
D33: 3 | E33: 30 | F33: 11 | G33: SolveMP
D34: 4 | E34: 2 | F34: 4 | G34: OutCustomerPurchasePrice | H34: OptCustomerPurchasePrice
D35: 4 | E35: 3 | F35: 4 | G35: OutCustomerSupplierToPlantShipping | H35: OptCustomerShippingCost
D36: 4 | E36: 4 | F36: 4 | G36: OutCustomerProcessedAtPlant | H36: OPTCustomerProcessedAtPlant
D37: 4 | E37: 5 | F37: 4 | G37: OutCustomerCalcinationCost | H37: OptCustomerCalcinationCost
D38: 4 | E38: 6 | F38: 4 | G38: OutCustomerTotalPlantCost | H38: OptCustomerTotalPlantCost
D39: 4 | E39: 7 | F39: 4 | G39: OutCustomerRedistributionCost | H39: OptCustomerRedistributionCost
D40: 4 | E40: 8 | F40: 4 | G40: OutCustomerTerminalCost | H40: OPTCustomerTerminalCost
D41: 4 | E41: 9 | F41: 4 | G41: OutCustomerDeliveryCost | H41: OPTCustomerDeliveryCost
D42: 4 | E42: 10 | F42: 4 | G42: OutCustomerBlendUsage | H42: OPTCustomerBlendUsage
D43: 4 | E43: 11 | F43: 4 | G43: OutCustomerPickup | H43: OPTCustomerPickup
D44: 4 | E44: 12 | F44: 4 | G44: OutProcessingQualitySpecs | H44: OPTCustomerSpecs
D45: 4 | E45: 13 | F45: 4 | G45: OutProcessingSpecialOrder | H45: OPTCustomerOrders
D46: 4 | E46: 14 | F46: 4 | G46: OutPlantTput | H46: OPTPlantTPut
D47: 4 | E47: 15 | F47: 4 | G47: OutPlantSulfur | H47: OPTPlantSulfur
D48: 4 | E48: 16 | F48: 4 | G48: OutPlantTrueYield | H48: OPTPlantTrueYield
D49: 4 | E49: 17 | F49: 4 | G49: OutPlantReceivedFromSuppliers | H49: OPTPlantReceivedfromSupplier
D50: 4 | E50: 18 | F50: 4 | G50: OutPlantShippedToTerminals | H50: OPTPlantShipToTerminal
D51: 4 | E51: 19 | F51: 4 | G51: OutTerminalFromSupplierProduction | H51: OPTTerminalProduction
D52: 4 | E52: 20 | F52: 4 | G52: OutSupplierOptimalUsage | H52: OPTSupplierUsage
D53: 4 | E53: 21 | F53: 4 | G53: OutSupplierTrueYield | H53: OPTSupplierTrueYield
D54: 4 | E54: 22 | F54: 4 | G54: OutSupplierShippedtoPlants | H54: OPTSupplierShipToPlant
D55: 4 | E55: 23 | F55: 4 | G55: OutSupplierBlendProduction | H55: OPTSupplierBlend
D56: 5 | E56: 1 | F56: 4 | G56: InCustomerDemand | H56: INCustomerDemand
D57: 5 | E57: 2 | F57: 4 | G57: InCustomerMaxQual | H57: INCustomerMaxQuality
D58: 5 | E58: 3 | F58: 4 | G58: InCustomerMaxSpecialOrder | H58: INCustomerMaxSpecialOrder
D59: 5 | E59: 4 | F59: 4 | G59: InCustomerMinQual | H59: INCustomerMinQuality
D60: 5 | E60: 5 | F60: 4 | G60: InCustomerMinSpecialOrder | H60: INCustomerMinSpecialOrder
D61: 5 | E61: 6 | F61: 4 | G61: InPlantCostperTon | H61: INPlantCostPerTon
D62: 5 | E62: 7 | F62: 4 | G62: InPlantFixedCost | H62: INPlantFixedCosts
D63: 5 | E63: 8 | F63: 4 | G63: InPlantMaxSulfur | H63: INPlantMaxSulfur
D64: 5 | E64: 9 | F64: 4 | G64: InPlantToTerminalRedistribution | H64: INPlantToTerminalShippingCost
D65: 5 | E65: 10 | F65: 4 | G65: InPlantTput | H65: INPlantTPut
D66: 5 | E66: 11 | F66: 4 | G66: InPlantUtilityFixedCost | H66: INPlantUtilityFixedCosts
D67: 5 | E67: 12 | F67: 4 | G67: InPlantUtilityIncomePrice | H67: INPlantUtilityIncomePrice
D68: 5 | E68: 13 | F68: 2 | G68: Customers | H68: INSetNameCustomer
D69: 5 | E69: 14 | F69: 2 | G69: Plants | H69: INSetNamePlant
D70: 5 | E70: 15 | F70: 2 | G70: Qualities | H70: INSetNameQualities
D71: 5 | E71: 16 | F71: 2 | G71: Suppliers | H71: INSetNameSupplier
D72: 5 | E72: 17 | F72: 2 | G72: Terminals | H72: INSetNameTerminal
D73: 5 | E73: 18 | F73: 4 | G73: InSupplierEnergyFactor | H73: INSupplierEnergyFactors
D74: 5 | E74: 19 | F74: 4 | G74: InSupplierMaxAvailable | H74: INSupplierMaxAvailable
D75: 5 | E75: 20 | F75: 4 | G75: InSupplierMinTake | H75: INSupplierMinForcedTake
D76: 5 | E76: 21 | F76: 4 | G76: InSupplierPurchasePrice | H76: INSupplierPrice
D77: 5 | E77: 22 | F77: 4 | G77: InSupplierToPlantShipping | H77: INSupplierToPlantShippingCost
D78: 5 | E78: 23 | F78: 4 | G78: InSupplierPlantYield | H78: INSupplierYieldFactor
D79: 5 | E79: 24 | F79: 4 | G79: InSupplierQualConversion | H79: InSupplyQualConversions
D80: 5 | E80: 25 | F80: 4 | G80: InSupplierQuality | H80: INSupplyQuality
D81: 5 | E81: 26 | F81: 4 | G81: InSupplierSulfurConversion | H81: InSupplySulfurConversions
D82: 5 | E82: 27 | F82: 4 | G82: InSupplierSulfur | H82: INSupplySulfurQuality
D83: 5 | E83: 28 | F83: 4 | G83: InTerminalCost | H83: INTerminalCosts
D84: 5 | E84: 29 | F84: 4 | G84: InTerminalDeliveryCost | H84: INTerminalCustomerDeliveryCost
D85: 5 | E85: 30 | F85: 4 | G85: InTerminalSpecifiedByCustomer | H85: INTerminalCustomerPickup
D86: 6 | E86: 1 | F86: 1 | G86: Customers | H86: INCustomerName
D87: 6 | E87: 2 | F87: 1 | G87: Plants | H87: INSetNamePlant
D88: 6 | E88: 3 | F88: 1 | G88: Suppliers | H88: INSetNameSupplier
D89: 6 | E89: 4 | F89: 3 | G89: InCustomerDemand | H89: INCustomerDemand
D90: 6 | E90: 5 | F90: 3 | G90: InMaxTput | H90: INPlantTPut
D91: 6 | E91: 6 | F91: 3 | G91: InPlantTerminalShipping | H91: INPlantToTerminalShippingCost
D92: 6 | E92: 7 | F92: 3 | G92: InSupplierAvailable | H92: INSupplierMaxAvailable
D93: 6 | E93: 8 | F93: 3 | G93: InSupplierMinTake | H93: INSupplierMinForcedTake
D94: 6 | E94: 9 | F94: 3 | G94: InSupplierPlantShipping | H94: INSupplierToPlantShippingCost
D95: 6 | E95: 10 | F95: 3 | G95: InSupplierPrice | H95: INSupplierPrice
D96: 6 | E96: 12 | F96: 3 | G96: ObjectiveFunction
D97: 6 | E97: 11 | F97: 3 | G97: InTerminalCustomerShipping | H97: INTerminalCustomerDeliveryCost
D98: 1 | E98: 2 | F98: 1 | G98: Suppliers | H98: INSetNameSupplier
D99: 1 | E99: 3 | F99: 1 | G99: Plants | H99: INSetNamePlant
